bitfinex-derivatives/quotes_SOLF0:USTF0_20250425
["timestamp","ask_amount","ask_price","bid_price","bid_amount"]
[1745586966620,6.517,153.38,153.37,10.97386776]
[1745586967022,37.49386776,153.41,153.36,10.97386776]
[1745586967223,10.97386776,153.4,153.36,10.97386776]
[1745586968429,6.5172,153.38,153.36,10.97386776]
[1745586969330,6.5174,153.37,153.36,10.97386776]
[1745586969726,10.97386776,153.4,153.36,10.97386776]
[1745586970432,6.5174,153.37,153.36,10.97386776]
[1745586971635,6.5172,153.38,153.36,10.97386776]
[1745586971834,10.97386776,153.4,153.36,10.97386776]
[1745586972134,6.5173,153.38,153.37,10.97386776]
[1745586972838,6.5175,153.37,153.36,10.97386776]
[1745586973338,37.49386776,153.41,153.36,10.97386776]
[1745586973540,6.5173,153.38,153.36,10.97386776]
[1745586977637,6.5173,153.38,153.36,17.49166776]
[1745586977934,6.5165,153.4,153.37,10.97386776]
[1745586978129,6.5165,153.4,153.37,17.49106776]
[1745586979041,10.97386776,153.41,153.31,26.52]
[1745586979238,10.97386776,153.41,153.36,10.97386776]
[1745586979539,6.5173,153.38,153.35,17.49186776]
[1745586979739,10.97386776,153.4,153.35,17.49186776]
[1745586980343,6.5174,153.37,153.35,17.49186776]
[1745586980542,10.97386776,153.37,153.32,10.97386776]
[1745586980741,10.97386776,153.37,153.33,10.97386776]
[1745586980941,10.97386776,153.35,153.28,360.8778]
[1745586981237,10.97386776,153.35,153.3,10.97386776]
[1745586981440,6.5193,153.33,153.3,10.97386776]
[1745586981840,6.5191,153.34,153.31,10.97386776]
[1745586982143,37.45386776,153.36,153.31,17.49356776]
[1745586982536,6.519,153.34,153.31,17.49356776]
[1745586982735,37.45386776,153.36,153.31,17.49356776]
[1745586983241,26.48,153.36,153.32,10.97386776]
[1745586983436,10.97386776,153.38,153.33,10.97386776]
[1745586984139,10.97386776,153.37,153.32,10.97386776]
[1745586984340,10.97386776,153.37,153.32,17.49326776]
[1745586985241,6.5185,153.35,153.32,17.49326776]
[1745586985447,6.5185,153.35,153.33,6.5191]
[1745586988743,6.518,153.36,153.33,17.49296776]
[1745586989143,26.48,153.39,153.35,10.97386776]
[1745586989344,10.97386776,153.43,153.38,10.97386776]
[1745586989541,10.97386776,153.43,153.39,10.97386776]
[1745586989744,6.5157,153.41,153.38,17.49066776]
[1745586990140,6.5157,153.41,153.38,10.97386776]
[1745586990340,10.97386776,153.43,153.39,10.97386776]
[1745586990541,10.97386776,153.41,153.37,10.97386776]
[1745586990736,10.97386776,153.4,153.36,1.9484]
[1745586991037,6.517,153.38,153.36,1.9484]
[1745586991243,10.97386776,153.39,153.36,1.9484]
[1745586991444,15.0087,153.47,153.33,10.97386776]
[1745586991445,17.49156776,153.37,153.33,10.97386776]
[1745586991840,17.49156776,153.37,153.33,17.49266776]
[1745586992042,17.49156776,153.37,153.33,10.97386776]
[1745586992241,6.5173,153.38,153.35,10.97386776]
[1745586992642,10.97386776,153.39,153.35,10.97386776]
[1745586992848,6.5177,153.37,153.35,10.97386776]
[1745586997351,10.97386776,153.41,153.36,10.97386776]
[1745586997550,10.97386776,153.41,153.37,10.97386776]
[1745586997750,6.5164,153.4,153.37,10.97386776]
[1745586997951,10.97386776,153.41,153.37,10.97386776]
[1745586998348,6.5165,153.4,153.37,10.97386776]
[1745586999051,6.5166,153.39,153.37,10.97386776]
[1745586999246,6.5166,153.39,153.36,17.49126776]
[1745586999751,10.97386776,153.39,153.35,17.49196776]
[1745587001054,6.5172,153.38,153.35,17.49196776]
[1745587001353,10.97386776,153.37,153.33,10.97386776]
[1745587001549,6.5181,153.36,153.33,10.97386776]
[1745587001748,6.5181,153.36,153.33,6.5188]
[1745587002253,6.5183,153.35,153.33,6.5188]
[1745587002552,10.97386776,153.37,153.33,17.49266776]
[1745587002747,6.518,153.36,153.33,17.49266776]
[1745587003052,10.97386776,153.37,153.33,17.49266776]
[1745587003656,10.97386776,153.36,153.32,17.49316776]
[1745587003854,10.97386776,153.36,153.32,10.97386776]
[1745587004249,17.49186776,153.36,153.33,6.5188]
[1745587004449,6.518,153.36,153.33,17.49266776]
[1745587004652,6.5167,153.39,153.36,6.5178]
[1745587004853,6.5167,153.39,153.36,17.49166776]
[1745587005050,10.97386776,153.43,153.38,10.97386776]
[1745587005357,10.97386776,153.46,153.42,10.97386776]
[1745587005659,37.41386776,153.47,153.43,17.48866776]
[1745587005858,26.44,153.47,153.44,10.97386776]
[1745587006861,6.5138,153.46,153.44,10.97386776]
[1745587007359,10.97386776,153.49,153.45,10.97386776]
[1745587007754,6.5134,153.47,153.45,10.97386776]
[1745587008157,10.97386776,153.48,153.45,10.97386776]
[1745587008362,6.5146,153.44,153.42,10.97386776]
[1745587008755,10.97386776,153.46,153.42,10.97386776]
[1745587008955,10.97386776,153.47,153.43,10.97386776]
[1745587009162,10.97386776,153.48,153.44,10.97386776]
[1745587009360,6.514,153.45,153.44,10.97386776]
[1745587010062,6.514,153.45,153.43,10.97386776]
[1745587010261,6.5144,153.44,153.43,10.97386776]
[1745587010461,10.97386776,153.44,153.4,17.48976776]
[1745587010662,10.97386776,153.42,153.38,37.41386776]
[1745587010858,6.5159,153.41,153.38,10.97386776]
[1745587011053,6.5159,153.41,153.38,17.49056776]
[1745587011255,10.97386776,153.41,153.36,2.0478]
[1745587011563,6.5168,153.39,153.36,8.5654]
[1745587011764,17.49066776,153.39,153.36,8.5654]
[1745587012162,17.49066776,153.39,153.37,6.5173]
[1745587012463,6.517,153.38,153.36,2.0478]
[1745587013458,6.5166,153.39,153.36,2.0478]
[1745587013659,26.44,153.42,153.38,10.97386776]
[1745587013864,26.44,153.42,153.39,10.97386776]
[1745587015465,6.5159,153.41,153.39,10.97386776]
[1745587016366,32.9555,153.42,153.39,10.97386776]
[1745587016569,32.9555,153.42,153.39,17.49036776]
[1745587016767,6.5148,153.43,153.41,10.97386776]
[1745587016967,26.44,153.46,153.42,10.97386776]
[1745587017164,37.41386776,153.46,153.42,10.97386776]
[1745587017465,6.5147,153.44,153.42,10.97386776]
[1745587017666,6.5147,153.44,153.42,17.48906776]
[1745587018066,6.5147,153.44,153.41,10.97386776]
[1745587018767,10.97386776,153.45,153.41,10.97386776]
[1745587018967,10.97386776,153.43,153.38,10.97386776]
[1745587019372,17.11583376,153.45,153.39,6.5161]
[1745587019669,6.5153,153.43,153.39,6.5161]
[1745587020568,17.11583376,153.45,153.38,6.5166]
[1745587020771,17.11583376,153.45,153.37,30.3909]
[1745587020964,26.44,153.46,153.37,30.3909]
[1745587020965,26.44,153.46,153.38,17.11583376]
[1745587021165,26.44,153.46,153.4,6.5158]
[1745587021665,26.44,153.46,153.43,6.5148]
[1745587021866,26.44,153.46,153.4,17.11583376]
[1745587022974,26.44,153.49,153.42,17.11583376]
[1745587023170,26.44,153.49,153.43,1.8483]
[1745587023371,6.5134,153.47,153.44,6.5142]
[1745587024574,6.5134,153.47,153.45,6.514]
[1745587024972,6.5129,153.48,153.45,6.514]
[1745587025173,26.44,153.49,153.44,6.5142]
[1745587025473,6.5135,153.47,153.44,6.5142]
[1745587025669,6.5135,153.47,153.44,6.5143]
[1745587025873,6.5135,153.47,153.43,1.8483]
[1745587026275,6.5135,153.47,153.44,6.5142]
[1745587027681,6.5128,153.48,153.45,6.514]
[1745587028174,6.513,153.48,153.45,6.514]
[1745587028382,26.44,153.49,153.46,6.5135]
[1745587028581,26.42,153.52,153.46,17.11583376]
[1745587028979,26.42,153.52,153.5,6.5117]
[1745587029380,6.5115,153.51,153.46,17.11583376]
[1745587029579,6.5115,153.51,153.48,6.5125]
[1745587029878,26.42,153.52,153.46,17.11583376]
[1745587030083,26.42,153.52,153.45,26.42]
[1745587030382,17.11583376,153.51,153.44,3.8216]
[1745587030682,6.5131,153.48,153.45,6.5139]
[1745587030983,17.11583376,153.51,153.44,3.8216]
[1745587031181,17.11583376,153.51,153.44,10.3357]
[1745587031388,17.11583376,153.51,153.44,3.8216]
[1745587031689,17.11583376,153.51,153.44,1.8879]
[1745587031883,6.5129,153.48,153.45,6.5139]
[1745587032287,17.11583376,153.51,153.45,6.5139]
[1745587032588,17.11583376,153.51,153.44,8.4022]
[1745587032889,17.11583376,153.51,153.43,8.363]
[1745587033089,17.11583376,153.49,153.43,1.8483]
[1745587033290,26.38,153.48,153.43,1.8483]
[1745587033591,17.11583376,153.47,153.39,30.3554]
[1745587033791,43.49583376,153.48,153.39,32.2682]
[1745587034289,43.49583376,153.48,153.4,17.11583376]
[1745587034983,6.5137,153.46,153.4,17.11583376]
[1745587035191,43.49583376,153.48,153.4,17.11583376]
[1745587035387,6.5135,153.47,153.44,6.5142]
[1745587035586,43.49583376,153.48,153.44,6.5142]
[1745587035986,17.11583376,153.46,153.39,5.8882]
[1745587036891,6.5146,153.44,153.41,6.5156]
[1745587037088,17.11583376,153.46,153.39,5.8882]
[1745587037491,6.5146,153.44,153.41,6.5157]
[1745587037790,17.11583376,153.46,153.39,5.8882]
[1745587037990,43.49583376,153.48,153.39,23.00403376]
[1745587038191,6.5143,153.45,153.39,23.00403376]
[1745587038389,43.49583376,153.48,153.39,23.00403376]
[1745587038589,6.5134,153.47,153.44,6.5142]
[1745587039295,43.49583376,153.48,153.43,6.5146]
[1745587039689,43.49583376,153.48,153.39,23.00403376]
[1745587039889,6.5143,153.45,153.42,6.5151]
[1745587040296,17.11583376,153.46,153.36,26.38]
[1745587040485,17.11583376,153.46,153.41,6.5154]
[1745587040687,17.11583376,153.46,153.37,17.11583376]
[1745587040994,6.5149,153.43,153.4,6.5158]
[1745587041396,6.5149,153.43,153.37,17.11583376]
[1745587041593,6.5144,153.45,153.37,17.11583376]
[1745587041796,43.49583376,153.48,153.39,17.11583376]
[1745587042697,6.5147,153.44,153.41,6.5154]
[1745587043494,43.49583376,153.44,153.36,1.8731]
[1745587043995,6.5159,153.41,153.38,6.5167]
[1745587044298,43.49583376,153.44,153.36,1.8731]
[1745587044497,43.49583376,153.44,153.37,6.5172]
[1745587044798,17.11583376,153.42,153.34,3.9238]
[1745587044996,6.5172,153.38,153.34,1.8743]
[1745587045197,6.5172,153.38,153.36,6.5177]
[1745587046400,6.5172,153.38,153.35,6.518]
[1745587046595,6.5167,153.39,153.34,1.8743]
[1745587047103,32.9163,153.4,153.34,1.8743]
[1745587047403,26.4,153.4,153.36,6.5175]
[1745587047596,6.5168,153.39,153.34,1.8743]
[1745587047899,26.4,153.4,153.38,6.5169]
[1745587048499,32.9164,153.4,153.37,6.5172]
[1745587048703,26.4,153.4,153.34,1.8743]
[1745587049001,6.517,153.38,153.36,6.5176]
[1745587049299,26.4,153.4,153.36,6.5176]
[1745587049598,26.4,153.4,153.34,1.8743]
[1745587050295,6.517,153.38,153.36,6.5176]
[1745587050499,26.4,153.4,153.34,1.8743]
[1745587050802,6.5169,153.39,153.36,6.5176]
[1745587051702,26.4,153.4,153.33,26.38]
[1745587052001,17.11583376,153.39,153.32,1.9232]
[1745587052200,6.5177,153.37,153.35,6.5181]
[1745587052801,6.5177,153.37,153.34,6.5184]
[1745587054599,17.11583376,153.38,153.3,28.3511]
[1745587055103,17.11583376,153.38,153.33,6.5191]
[1745587057103,6.5182,153.36,153.33,6.5191]
[1745587057402,26.4,153.4,153.31,17.11583376]
[1745587057602,26.4,153.4,153.33,17.11583376]
[1745587057803,6.5172,153.38,153.33,17.11583376]
[1745587058403,26.4,153.4,153.33,17.11583376]
[1745587058603,17.11583376,153.44,153.35,17.11583376]
[1745587058795,6.5155,153.42,153.37,17.11583376]
[1745587059202,6.5155,153.42,153.39,6.5163]
[1745587059706,17.11583376,153.42,153.37,6.5172]
[1745587060007,17.11583376,153.42,153.35,17.11583376]
[1745587060207,6.5164,153.4,153.37,6.517]
[1745587061306,6.5164,153.4,153.38,6.517]
[1745587061609,26.4,153.43,153.35,17.11583376]
[1745587062107,6.5155,153.42,153.4,6.516]
[1745587062407,6.5155,153.42,153.35,17.11583376]
[1745587062807,6.5155,153.42,153.39,6.5163]
[1745587063009,26.4,153.43,153.35,17.11583376]
[1745587063010,6.5157,153.41,153.35,17.11583376]
[1745587063402,6.5157,153.41,153.38,6.5167]
[1745587063603,6.5163,153.4,153.35,17.11583376]
[1745587063911,6.5163,153.4,153.37,6.5171]
[1745587064106,6.5163,153.4,153.35,17.11583376]
[1745587064510,6.5159,153.41,153.38,6.5167]
[1745587065213,6.5163,153.4,153.37,6.5171]
[1745587065509,6.5163,153.4,153.35,17.11583376]
[1745587066109,26.4,153.43,153.35,17.11583376]
[1745587066609,6.5155,153.42,153.38,6.5166]
[1745587066809,26.4,153.43,153.38,6.5166]
[1745587067111,6.5155,153.42,153.38,6.5166]
[1745587068213,6.5155,153.42,153.39,6.5164]
[1745587068414,6.5157,153.41,153.35,17.11583376]
[1745587068604,26.4,153.43,153.35,17.11583376]
[1745587068813,6.5164,153.4,153.37,6.5172]
[1745587069013,17.11583376,153.42,153.34,28.4346]
[1745587069209,17.11583376,153.42,153.34,2.0346]
[1745587069412,6.5163,153.4,153.37,6.5173]
[1745587069811,17.11583376,153.42,153.37,6.5173]
[1745587070211,17.11583376,153.42,153.36,6.5177]
[1745587070510,6.5165,153.4,153.34,2.0346]
[1745587071516,17.11583376,153.42,153.34,2.0346]
[1745587072017,6.5157,153.41,153.38,6.5167]
[1745587072219,17.11583376,153.42,153.38,6.5167]
[1745587072419,17.11583376,153.42,153.34,2.0346]
[1745587072720,17.11583376,153.42,153.37,6.5172]
[1745587073012,17.11583376,153.42,153.34,2.0346]
[1745587073218,17.11583376,153.42,153.38,6.5167]
[1745587074020,6.5158,153.41,153.38,6.5167]
[1745587074320,17.11583376,153.42,153.34,2.0346]
[1745587074919,17.11583376,153.42,153.37,6.5172]
[1745587075218,17.11583376,153.42,153.34,2.0346]
[1745587075718,6.5163,153.4,153.34,2.0346]
[1745587076119,6.5159,153.41,153.38,6.5167]
[1745587076319,17.11583376,153.42,153.38,6.5167]
[1745587076921,6.5158,153.41,153.38,6.5167]
[1745587077219,17.11583376,153.42,153.39,6.5165]
[1745587077421,17.47142244,153.42,153.37,10.95602244]
[1745587078221,26.4,153.43,153.4,6.5159]
[1745587078420,37.35602244,153.43,153.4,6.5159]
[1745587078623,37.35602244,153.43,153.39,10.95602244]
[1745587078819,37.35602244,153.43,153.41,6.5155]
[1745587079118,37.35602244,153.43,153.39,10.95602244]
[1745587079324,10.95602244,153.42,153.38,10.95602244]
[1745587079915,10.95602244,153.41,153.37,10.95602244]
[1745587080122,10.95602244,153.4,153.36,10.95602244]
[1745587080323,6.5168,153.39,153.36,6.5175]
[1745587081324,10.95602244,153.38,153.35,6.5181]
[1745587081520,10.95602244,153.38,153.34,12.99062244]
[1745587081925,10.95602244,153.38,153.34,2.0346]
[1745587082421,10.95602244,153.35,153.23,13.0462]
[1745587082618,10.95602244,153.31,153.26,10.95602244]
[1745587082924,10.95602244,153.27,153.25,1.8605]
[1745587083114,10.95602244,153.27,153.23,10.95602244]
[1745587083425,6.5215,153.28,153.22,17.14845409]
[1745587083722,17.14845409,153.29,153.21,5.8566]
[1745587084722,17.14845409,153.27,153.21,1.8605]
[1745587084922,26.36,153.26,153.21,1.8605]
[1745587085424,26.36,153.26,153.17,17.14845409]
[1745587085625,26.36,153.26,153.17,19.16145409]
[1745587085822,6.5232,153.24,153.2,6.5245]
[1745587086124,26.36,153.26,153.17,19.16145409]
[1745587086321,17.14845409,153.25,153.17,2.013]
[1745587086527,17.14845409,153.23,153.17,2.013]
[1745587086728,6.5245,153.21,153.17,8.5386]
[1745587086918,26.36,153.22,153.17,2.013]
[1745587088023,26.36,153.22,153.18,6.5251]
[1745587089425,32.8838,153.22,153.18,6.5251]
[1745587089927,6.5246,153.21,153.11,28.3633]
[1745587090126,6.5246,153.21,153.13,17.14845409]
[1745587090427,17.14845409,153.19,153.14,6.5269]
[1745587090624,26.38,153.18,153.14,6.5269]
[1745587091323,26.38,153.18,153.12,2.0302]
[1745587091826,26.38,153.18,153.15,6.5264]
[1745587092526,26.38,153.18,153.12,2.0302]
[1745587092822,19.06975409,153.21,153.13,17.14845409]
[1745587093022,6.5232,153.24,153.2,6.5244]
[1745587093324,26.34,153.24,153.17,17.14845409]
[1745587093919,486.48845409,153.29,153.21,17.14845409]
[1745587094125,26.34,153.28,153.25,6.5222]
[1745587094325,26.34,153.28,153.22,1.9771]
[1745587095933,26.34,153.28,153.23,17.14845409]
[1745587097025,26.34,153.28,153.22,1.9771]
[1745587097431,6.5218,153.27,153.23,6.523]
[1745587097637,26.34,153.28,153.23,17.14845409]
[1745587097931,26.34,153.28,153.26,6.5217]
[1745587098132,26.34,153.28,153.23,17.14845409]
[1745587098635,26.34,153.31,153.25,17.14845409]
[1745587098936,17.14845409,153.35,153.27,17.14845409]
[1745587099233,32.8593,153.33,153.27,17.14845409]
[1745587099632,26.34,153.33,153.27,17.14845409]
[1745587100035,26.34,153.33,153.3,6.52]
[1745587100237,26.34,153.33,153.27,17.14845409]
[1745587100437,26.34,153.33,153.25,17.14845409]
[1745587100633,26.34,153.33,153.27,6.5212]
[1745587100835,6.5202,153.31,153.27,6.5212]
[1745587101136,26.34,153.33,153.25,17.14845409]
[1745587101334,6.52,153.31,153.26,1.9431]
[1745587101634,6.52,153.31,153.28,6.5209]
[1745587103142,6.5204,153.3,153.27,6.5215]
[1745587103337,26.34,153.33,153.26,1.9431]
[1745587104241,43.48845409,153.33,153.26,1.9431]
[1745587104444,43.48845409,153.33,153.25,17.14845409]
[1745587104840,6.5207,153.3,153.25,17.14845409]
[1745587105442,43.48845409,153.33,153.25,17.14845409]
[1745587105834,6.5203,153.31,153.27,6.5215]
[1745587106039,26.34,153.33,153.27,17.14845409]
[1745587106841,6.5184,153.35,153.32,6.5192]
[1745587107043,26.34,153.35,153.31,17.14845409]
[1745587107552,26.34,153.35,153.34,6.5187]
[1745587107848,17.14845409,153.41,153.31,17.14845409]
[1745587108047,26.34,153.4,153.31,17.14845409]
[1745587108350,6.5175,153.37,153.34,6.5185]
[1745587109048,6.5179,153.36,153.33,6.5191]
[1745587109347,6.5179,153.36,153.31,17.14845409]
[1745587109551,6.5179,153.36,153.32,6.5192]
[1745587109743,6.5179,153.36,153.31,17.14845409]
[1745587110145,6.5175,153.37,153.34,6.5184]
[1745587110346,17.14845409,153.39,153.31,17.14845409]
[1745587111340,6.5179,153.36,153.33,6.5189]
[1745587111848,6.5175,153.37,153.34,6.5187]
[1745587112246,26.34,153.4,153.33,17.14845409]
[1745587112947,26.34,153.4,153.31,17.14845409]
[1745587113248,26.34,153.4,153.34,6.5184]
[1745587113652,26.34,153.4,153.31,17.14845409]
[1745587113850,26.34,153.4,153.36,6.5178]
[1745587114350,6.517,153.38,153.35,6.5181]
[1745587114547,26.34,153.4,153.33,17.14845409]
[1745587114752,26.34,153.4,153.35,17.14845409]
[1745587114951,26.34,153.4,153.38,6.5167]
[1745587115252,473.5096,153.43,153.34,1.8958]
[1745587115253,495.92,153.43,153.37,17.14845409]
[1745587115549,6.5157,153.41,153.38,6.5167]
[1745587115952,6.5153,153.42,153.37,17.14845409]
[1745587116148,495.92,153.43,153.37,17.14845409]
[1745587116346,495.92,153.43,153.35,17.14845409]
[1745587116650,17.14845409,153.42,153.34,3.9297]
[1745587117249,6.5173,153.38,153.35,6.518]
[1745587118049,6.5167,153.39,153.36,6.5178]
[1745587118357,17.14845409,153.42,153.36,6.5178]
[1745587118655,6.517,153.38,153.35,6.5179]
[1745587118958,17.14845409,153.42,153.34,3.9297]
[1745587119556,6.5168,153.39,153.36,6.5176]
[1745587119751,6.5168,153.39,153.34,3.9297]
[1745587119956,17.14845409,153.42,153.34,3.9297]
[1745587120154,6.5168,153.39,153.36,6.5176]
[1745587120352,17.14845409,153.42,153.34,3.9297]
[1745587120554,6.5172,153.38,153.35,6.5181]
[1745587120750,6.5172,153.38,153.34,3.9297]
[1745587120952,17.14845409,153.42,153.34,3.9297]
[1745587121155,6.5172,153.38,153.35,6.5182]
[1745587121356,17.14845409,153.42,153.34,3.9297]
[1745587122057,6.5163,153.4,153.37,6.5172]
[1745587122258,495.92,153.43,153.35,17.14845409]
[1745587122660,26.28,153.42,153.35,17.14845409]
[1745587122856,26.28,153.42,153.36,1.9258]
[1745587123056,43.42845409,153.42,153.36,1.9258]
[1745587123257,6.5164,153.4,153.37,6.5172]
[1745587123962,26.28,153.42,153.36,1.9258]
[1745587124559,6.5157,153.41,153.36,1.9258]
[1745587125258,26.28,153.42,153.36,1.9258]
[1745587125559,26.28,153.42,153.39,6.5162]
[1745587126956,26.28,153.42,153.4,6.5161]
[1745587127163,26.28,153.44,153.37,17.14845409]
[1745587127557,26.28,153.44,153.42,6.5151]
[1745587128162,32.7945,153.44,153.42,6.5151]
[1745587128362,32.7945,153.44,153.41,6.5155]
[1745587129163,32.7945,153.44,153.42,6.5152]
[1745587129562,26.28,153.44,153.42,6.5152]
[1745587129866,26.28,153.44,153.41,6.5155]
[1745587130063,26.28,153.44,153.37,17.14845409]
[1745587130460,26.28,153.44,153.41,6.5155]
[1745587130764,6.5151,153.43,153.37,17.14845409]
[1745587130960,6.5151,153.43,153.4,6.5159]
[1745587131266,32.7945,153.44,153.37,17.14845409]
[1745587131468,26.28,153.44,153.42,6.5149]
[1745587131769,26.28,153.44,153.39,17.14845409]
[1745587132364,32.7944,153.44,153.39,17.14845409]
[1745587133264,32.7944,153.44,153.42,6.515]
[1745587133561,26.28,153.44,153.42,6.515]
[1745587134062,486.40845409,153.5,153.41,17.14845409]
[1745587134263,26.28,153.46,153.41,17.14845409]
[1745587134568,26.28,153.46,153.43,6.5146]
[1745587134761,6.5138,153.46,153.43,6.5146]
[1745587134964,26.28,153.47,153.45,6.5138]
[1745587135362,6.5136,153.46,153.41,17.14845409]
[1745587135866,6.5133,153.47,153.41,17.14845409]
[1745587136064,26.28,153.47,153.44,6.514]
[1745587136263,26.28,153.47,153.41,17.14845409]
[1745587136464,6.5138,153.46,153.41,17.14845409]
[1745587137163,32.7933,153.47,153.41,17.14845409]
[1745587137465,26.28,153.47,153.41,17.14845409]
[1745587137665,26.28,153.47,153.43,6.5145]
[1745587137867,6.5136,153.46,153.41,17.14845409]
[1745587138168,6.5136,153.46,153.43,6.5146]
[1745587138364,26.28,153.47,153.43,6.5146]
[1745587138569,6.5142,153.45,153.43,6.5146]
[1745587138767,26.28,153.47,153.41,17.14845409]
[1745587139468,26.28,153.47,153.42,1.8681]
[1745587139670,32.7932,153.47,153.42,1.8681]
[1745587140062,26.28,153.47,153.42,1.8681]
[1745587140468,26.28,153.47,153.42,8.3832]
[1745587140670,26.28,153.47,153.39,17.14845409]
[1745587140970,26.28,153.47,153.41,6.5153]
[1745587141171,6.5142,153.45,153.39,17.14845409]
[1745587141572,26.28,153.47,153.44,6.5144]
[1745587141774,26.28,153.47,153.41,17.14845409]
[1745587142271,26.28,153.47,153.45,6.5137]
[1745587142768,26.28,153.47,153.4,2.0088]
[1745587143372,10.9511029,153.46,153.41,10.9511029]
[1745587143776,6.5143,153.45,153.42,6.5149]
[1745587143978,10.9511029,153.46,153.41,10.9511029]
[1745587144170,10.9511029,153.46,153.38,28.1481]
[1745587144377,6.5156,153.42,153.39,10.9511029]
[1745587145479,6.5156,153.42,153.38,1.8681]
[1745587145679,6.5156,153.42,153.4,6.5159]
[1745587145873,6.515,153.43,153.38,1.8681]
[1745587147078,6.515,153.43,153.4,6.5157]
[1745587147279,6.515,153.43,153.38,1.8681]
[1745587147479,6.5153,153.42,153.38,1.8681]
[1745587147679,6.5153,153.42,153.4,6.5161]
[1745587148077,6.5151,153.43,153.4,6.5161]
[1745587148580,6.5151,153.43,153.41,6.5156]
[1745587150083,6.5153,153.42,153.4,6.5161]
[1745587150683,6.5157,153.41,153.39,6.5163]
[1745587150983,17.1157625,153.46,153.39,6.5163]
[1745587151380,6.5156,153.42,153.4,6.5161]
[1745587151585,17.1157625,153.46,153.4,6.5161]
[1745587151986,26.28,153.47,153.39,17.1157625]
[1745587152883,6.5138,153.46,153.43,6.5145]
[1745587153379,6.5138,153.46,153.44,6.5142]
[1745587153584,26.28,153.47,153.38,1.8681]
[1745587153585,32.7933,153.47,153.41,17.1157625]
[1745587154079,32.7933,153.47,153.44,6.5141]
[1745587154280,6.5136,153.46,153.44,6.5141]
[1745587156282,32.7934,153.47,153.44,6.5141]
[1745587156485,32.7934,153.47,153.45,6.5139]
[1745587157281,469.26,153.5,153.46,6.5136]
[1745587157487,495.5,153.5,153.43,17.1157625]
[1745587158384,6.5123,153.49,153.47,6.5129]
[1745587158781,6.5127,153.48,153.45,6.5136]
[1745587158986,17.1157625,153.48,153.39,43.3557625]
[1745587159289,6.5142,153.45,153.42,6.515]
[1745587159587,32.7542,153.45,153.42,6.515]
[1745587159781,26.24,153.45,153.38,1.8681]
[1745587159977,6.5153,153.43,153.4,6.5158]
[1745587160183,26.24,153.45,153.4,6.5158]
[1745587160384,6.5153,153.42,153.4,6.5158]
[1745587161389,6.5153,153.42,153.38,1.8681]
[1745587161390,17.1157625,153.44,153.38,1.8681]
[1745587161591,17.1157625,153.44,153.35,3.8815]
[1745587161987,6.5159,153.41,153.38,6.5168]
[1745587163288,6.5162,153.4,153.38,6.5168]
[1745587164091,6.5162,153.4,153.37,6.5172]
[1745587164291,6.5162,153.4,153.35,3.8815]
[1745587164790,6.5162,153.4,153.38,6.5167]
[1745587165493,17.47370521,153.41,153.38,6.5167]
[1745587166595,6.5162,153.4,153.38,6.5167]
[1745587166998,10.95780521,153.41,153.38,6.5166]
[1745587167199,17.47370521,153.41,153.38,6.5166]
[1745587167702,17.47370521,153.41,153.39,6.5164]
[1745587167900,6.5159,153.41,153.39,6.5164]
[1745587170802,6.5161,153.4,153.38,17.47470521]
[1745587171502,6.5159,153.41,153.39,6.5164]
[1745587172202,37.19780521,153.45,153.4,10.95780521]
[1745587172503,26.24,153.45,153.41,10.95780521]
[1745587172703,32.7542,153.45,153.42,17.47270521]
[1745587173304,6.5145,153.44,153.42,17.47270521]
[1745587174306,32.7541,153.45,153.42,17.47270521]
[1745587174608,26.24,153.45,153.42,6.5149]
[1745587174807,37.19780521,153.45,153.41,6.5155]
[1745587175007,6.515,153.43,153.4,10.95780521]
[1745587175400,6.515,153.43,153.41,6.5156]
[1745587176701,6.5153,153.42,153.4,10.95780521]